Cogmind - Beta 15 @@@ ROGUE MODE // 2025.05.18 @ 02:19:36 Player: Eggpie Result: Destroyed by DV-PDE(j) with Overtuned Pulse Rifle Performance ------------- Evolutions (0) 0 Regions Visited (3) 600 Robots Destroyed (5) 25 Value Destroyed (142) 142 Prototype IDs (0) 0 Alien Tech Used (0) 0 Bonus (800) 800 TOTAL SCORE: 1567 Bonus ------- Registered with UFD 300 Met Optimus in HQ 500 Cogmind --------- Core Integrity 0/250 Matter 280/300 Energy 274/290 System Corruption 3% Temperature Cool (12) Movement Treading (160) Ox1 Location -9/Scraptown Parts ------- > --- POWER (1) -------- Improved Deuterium Engine > --- PROPULSION (2) --- Overtuned Treads > --- UTILITY (2) ------ Medium Storage Unit Focal Shield > --- WEAPON (2) ------- (None) > --- INVENTORY (10) --- Light Deuterium Engine Armored Wheel Scrap Suit Surveybot 17 Chip Cloaking Device Authchip [Processor] Mapping Drone Bay (3/3) Slug Cannon Enhanced Flamer Peak State ------------ > --- POWER ------------ Light Nuclear Core > --- PROPULSION ------- Overtuned Flexi-carbon Leg Overtuned Flexi-carbon Leg > --- UTILITY ---------- Medium Storage Unit Hardlight Generator > --- WEAPON ----------- Heavy Riot Gun Hypervelocity Gauss Rifle > --- INVENTORY -------- Scrap Suit Surveybot 17 Chip Cloaking Device Focal Shield Authchip [Processor] Mapping Drone Bay Slug Cannon CPS Tube Enhanced Flamer [Rating: 32] Favorites ----------- Power Light Ion Engine Engine Light Ion Engine Power Core Light Nuclear Core Propulsion Compact Wheel Treads Overtuned Treads Leg Overtuned Flexi-carbon Leg Wheel Compact Wheel Utility Medium Storage Unit Device Hardlight Generator Storage Medium Storage Unit Protection Light Armor Plating Weapon Salvaging Laser Energy Gun Salvaging Laser Ballistic Gun Hypervelocity Gauss Rifle Special Weapon CPS Tube Build | -11 -10 -10 -9 ------- Run | Yrd Mat Sub Scr Slots Evolved . | . . . . Power . | . . . . Propulsion . | . . . . Utility . | . . . . Weapon . | . . . . Parts Attached 28 | 8 2 2 16 Power 4 | 1 . . 3 Engine 3 | 1 . . 2 Core 1 | . . . 1 Reactor . | . . . . Propulsion 8 | 3 . . 5 Treads 1 | . . . 1 Leg 2 | . . . 2 Wheel 5 | 3 . . 2 Hover . | . . . . Flight . | . . . . Utility 5 | 1 2 . 2 Device 2 | . . . 2 Storage 2 | 1 1 . . Processor . | . . . . Hackware . | . . . . Protection 1 | . 1 . . Artifact . | . . . . Weapon 11 | 3 . 2 6 Energy Gun 6 | 2 . 2 2 Energy Cannon . | . . . . Ballistic Gun 4 | 1 . . 3 Ballistic Cannon . | . . . . Launcher . | . . . . Special Weapon 1 | . . . 1 Impact Weapon . | . . . . Slashing Weapon . | . . . . Piercing Weapon . | . . . . Special Melee Weapon . | . . . . Unidentified Prototypes . | . . . . Parts Lost 5 | . . . 5 Power 1 | . . . 1 Propulsion 1 | . . . 1 Utility 1 | . . . 1 Weapon 2 | . . . 2 Highest Loss Streak 5 | . . . 5 To Critical Strikes . | . . . . Average Backups 8 | 1 1 6 9 Power . | 1 1 . . Propulsion . | . . . . Utility 3 | . . . 4 Weapon 4 | . . 4 4 Tool/Special . | . . . . Unused Backups 13 | . . 3 10 Power 2 | . . 2 . Propulsion . | . . . . Utility 6 | . . . 6 Weapon 5 | . . 1 4 Tool/Special . | . . . . Average Slot Usage (%) 95 | . 96 100 94 Engine 9 | . 14 14 8 Core 4 | . . . 5 Leg 1 | . . . 2 Wheel 22 | . 28 28 21 Device 3 | . . . 3 Storage 14 | . 14 14 14 Protection 10 | . 10 14 10 Energy Gun 18 | . 28 28 16 Ballistic Gun 9 | . . . 11 Peak Build Rating 32 | 6 7 9 32 Average Rating 15 | 4 6 8 17 On Entrance 5 | . 6 7 9 Naked Turns . | . . . . Heaviest Build 30 | 12 20 20 30 Greatest Support 46 | 32 32 32 46 Greatest Overweight (x) 1 | . . . 1 Average Overweight (x) . | . . . . Largest Inventory Capacity 10 | 8 10 10 10 Average Capacity 9 | 7 9 10 10 Most Carried 10 | 5 2 10 10 Average Carried 9 | 1 1 7 9 Final Capacity 10 | 8 10 10 10 Final Carried 10 | 1 1 10 10 Class Distribution -------------------- 100% | Mutant Dominant Class ---------------- Mutant | -10/Materials Mutant | -10/Subcaves Mutant | -9/Scraptown Resources | -11 -10 -10 -9 ----------- Run | Yrd Mat Sub Scr Matter Collected 536 | 57 80 183 216 Remotely . | . . . . Salvage Created 274 | 69 30 120 55 Parts 14 | 3 1 2 8 Haulers Intercepted . | . . . . Recyclers Shooed 1 | 1 . . . Parts Field Recycled . | . . . . Retrieved Matter . | . . . . Parts Self-Destructed 13 | . . 13 . Prevented . | . . . . Kills | -11 -10 -10 -9 ------- Run | Yrd Mat Sub Scr Combat Hostiles Destroyed 3 | . . 2 1 Guns 3 | . . 2 1 Classes Destroyed 4 | 1 1 1 1 Recycler 1 | 1 . . . Watcher 1 | . 1 . . Subdweller 2 | . . 2 . Guru 1 | . . . 1 Best Kill Streak 2 | 1 1 2 1 Combat Bots Only 2 | . . 2 1 Max Kills in Single Turn 1 | 1 1 1 1 Gunslinging . | . . . . Exploded . | . . . . Melee . | . . . . Uniques/NPCs Destroyed . | . . . . Combat | -11 -10 -10 -9 -------- Run | Yrd Mat Sub Scr Hostile Shots Fired 57 | . . 5 52 Missed 14 | . . 4 10 Hits 43 | . . 1 42 Projectile 43 | . . 1 42 Damage Taken 667 | . . 26 641 Core 267 | . . . 267 Absorbed by Shields 44 | . . . 44 Core Remaining (%) 100 | 100 . . . Volleys Fired 18 | 2 2 5 9 Largest 2 | 2 2 2 2 Hottest 93 | 80 80 80 93 Shots Fired 35 | 4 4 10 17 Gun 33 | 4 4 10 15 Cannon . | . . . . Launcher . | . . . . Special 2 | . . . 2 Kinetic 9 | . . . 9 Thermal . | . . . . Explosive . | . . . . Electromagnetic 24 | 4 4 10 6 Robot Hit Streak 6 | 1 2 4 6 Robot Miss Streak 2 | 2 1 1 2 Penetration Max . | . . . . Secondary Targets . | . . . . Shots Hit Robots 22 | 1 2 7 12 Core Hits 10 | 1 1 3 5 Critical Kills 1 | . . . 1 Critical Parts Destroyed 1 | . . . 1 Critical Strikes 2 | . . . 2 Destroy 2 | . . . 2 Melee Attacks . | . . . . Impact . | . . . . Slashing . | . . . . Piercing . | . . . . Sneak Attacks . | . . . . Combat Hostiles . | . . . . Follow-up Attacks . | . . . . Damage Inflicted 215 | 15 40 81 79 Guns 215 | 15 40 81 79 Cannons . | . . . . Explosions . | . . . . Melee . | . . . . Ramming . | . . . . Kinetic 33 | . . . 33 Thermal . | . . . . Explosive . | . . . . Electromagnetic 182 | 15 40 81 46 Impact . | . . . . Slashing . | . . . . Piercing . | . . . . Highest Corruption 3 | . . . 3 Average Corruption 2 | . . . 2 Corruption Purged . | . . . . Corruption Blocked . | . . . . Effects 4 | . . . 4 Matter Fused 2 | . . . 2 Data Loss (minor) 1 | . . . 1 Weapon Failures 1 | . . . 1 Overload Shots . | . . . . Overflow Damage . | . . . . Projectiles . | . . . . Explosions . | . . . . Melee . | . . . . Knockbacks . | . . . . Impact . | . . . . Kinetic . | . . . . Secondary . | . . . . Self-Inflicted Damage . | . . . . Shots . | . . . . Rammed . | . . . . Targets Rammed . | . . . . Kicked . | . . . . Crushed . | . . . . Highest Temperature 195 | 56 71 . 195 Average Temperature 81 | 31 36 . 103 Received Heat Transfer 294 | . . . 294 Siege Activations . | . . . . Martial Activations . | . . . . Shielding Activations . | . . . . Robots Disrupted . | . . . . Combat Hostiles . | . . . . Robots Corrupted . | . . . . Combat Hostiles . | . . . . Parts Fried . | . . . . Impact Corruptions . | . . . . Robots Melted . | . . . . Combat Hostiles . | . . . . Parts Melted 1 | . . 1 . Heat Transferred . | . . . . Parts Sabotaged . | . . . . Parts Stolen . | . . . . Parts Stripped . | . . . . Power Chain Reactions . | . . . . Alert | -11 -10 -10 -9 ------- Run | Yrd Mat Sub Scr Maximum Alert Level . | . . . . Low Security (%) 100 | 100 100 . . Level 1 . | . . . . Level 2 . | . . . . Level 3 . | . . . . Level 4 . | . . . . Level 5 . | . . . . High Security . | . . . . Max Security . | . . . . Peak Influence 7 | 5 7 . . Initial . | . . . . Average . | 1 . . . Influence Increases 12 | 5 7 . . Destroy 0b10 Robot/NC 10 | 5 5 . . Destroy Leader 2 | . 2 . . Influence Decreases 12 | 5 7 . . Time Decay 12 | 5 7 . . Squads Dispatched . | . . . . Investigation . | . . . . Extermination . | . . . . Reinforcement . | . . . . Assault . | . . . . Garrison . | . . . . Intercept . | . . . . Searches Triggered . | . . . . Construction Impeded . | . . . . Haulers Reinforced . | . . . . Active Scanning Responses . | . . . . Cargo Convoy Interrupts . | . . . . Stealth | -11 -10 -10 -9 --------- Run | Yrd Mat Sub Scr Distress Signals . | . . . . Communications Jammed . | . . . . Distress Signals . | . . . . Times Spotted 22 | . 3 2 17 Peak Tracking Total 11 | . 2 1 11 Tactical Retreats . | . . . . Traps | -11 -10 -10 -9 ------- Run | Yrd Mat Sub Scr Traps Triggered . | . . . . Indirectly . | . . . . Trap Hack Attempts . | . . . . Triggered . | . . . . Disarmed . | . . . . Reprogrammed . | . . . . Reused . | . . . . Traps Extracted . | . . . . Installed . | . . . . Triggered . | . . . . Machines | -11 -10 -10 -9 ---------- Run | Yrd Mat Sub Scr Machines Disabled 1 | . . . 1 Max in Single Turn 1 | . . . 1 Machines Repaired . | . . . . Machines Dismantled . | . . . . Machines Sabotaged . | . . . . Overloaded Fab Kills . | . . . . Hacking | -11 -10 -10 -9 --------- Run | Yrd Mat Sub Scr Machines Accessed 8 | . 1 . 7 Terminals 1 | . 1 . . Fabricators . | . . . . Repair Stations . | . . . . Recycling Units . | . . . . Scanalyzers . | . . . . Garrison Access . | . . . . Total Hacks 58 | . 2 . 56 Successful 58 | . 2 . 56 Failed . | . . . . Catastrophic . | . . . . Database Lockouts . | . . . . Manual . | . . . . Terminals 2 | . 2 . . Fabricators . | . . . . Repair Stations . | . . . . Recycling Units . | . . . . Scanalyzers . | . . . . Garrison Access . | . . . . Terminal Hacks 58 | . 2 . 56 Record 57 | . 1 . 56 Zone Layout 1 | . 1 . . Fabricator Hacks . | . . . . Repair Station Hacks . | . . . . Recycling Unit Hacks . | . . . . Scanalyzer . | . . . . Garrison Access Hacks . | . . . . Unauthorized Hacks . | . . . . Terminals . | . . . . Fabricators . | . . . . Repair Stations . | . . . . Recycling Units . | . . . . Scanalyzers . | . . . . Garrison Access . | . . . . Data Cores Recovered 1 | . 1 . . Used . | . . . . Hacking Detections 1 | . 1 . . Full Trace Events . | . . . . Feedback Events . | . . . . Feedback Blocked . | . . . . Robot Schematics Acquired . | . . . . Robots Built . | . . . . Authchips . | . . . . Time . | . . . . Total Robot Build Rating . | . . . . Part Schematics Acquired . | . . . . Parts Built . | . . . . Authchips . | . . . . Time . | . . . . Total Part Build Rating . | . . . . Parts Repaired . | . . . . Time . | . . . . Parts Recycled . | . . . . Recycled Matter . | . . . . Retrieved Matter . | . . . . Retrieved Components . | . . . . Parts Scanalyzed . | . . . . Part Schematics Acquired . | . . . . Parts Damaged . | . . . . Bothacking | -11 -10 -10 -9 ------------ Run | Yrd Mat Sub Scr Used RIF Installer . | . . . . Robots Hacked . | . . . . Non-combat . | . . . . Combat . | . . . . Robot Hacks Applied . | . . . . Relay Couplers Released . | . . . . Fabnet Peak Effective % . | . . . . Robots Rewired . | . . . . Allies Hacked . | . . . . Hacks Repelled . | . . . . Allies | -11 -10 -10 -9 -------- Run | Yrd Mat Sub Scr Total Allies . | . . . . Largest Group . | . . . . Highest-Rated Group . | . . . . Highest-Rated Ally . | . . . . Total Orders . | . . . . Ally Attacks . | . . . . Total Damage . | . . . . Kills . | . . . . Allies Corrupted . | . . . . Allies Melted 1 | . . . 1 Intel | -11 -10 -10 -9 ------- Run | Yrd Mat Sub Scr Active Infowar (turns) . | . . . . Robot Analysis Total . | . . . . Derelict Logs Recovered 3 | . . 1 2 Drone Launches . | . . . . Drone Recoveries . | . . . . Exploration | -11 -10 -10 -9 ------------- Run | Yrd Mat Sub Scr Turns Passed 2717 | 49 113 321 2234 Spaces Moved 2396 | 31 102 277 1986 Core 10 | 10 . . . Treads . | . . . . Legs 130 | . . . 130 Wheels 2256 | 21 102 277 1856 Hover . | . . . . Flight . | . . . . Fastest Speed 50 | 50 100 100 90 Average Speed 106 | 80 100 100 108 Slowest Speed 160 | 100 100 100 160 Overloaded Moves . | . . . . Propulsion Burnouts . | . . . . Robots Hopped . | . . . . Potential Cave-ins . | . . . . Cave-ins Triggered . | . . . . Exploration Rate (%) 33 | 4 23 20 88 Regions Visited 3 Branch Regions 2 Pre-discovered Areas 1 | . . 1 . Known Exits Taken . | . . . . Unknown Exits Taken 3 | 1 1 1 . Scrap Searched 16 | . . 8 8 Spaces Dug . | . . . . Terrain Destroyed . | . . . . Melee . | . . . . Projectile . | . . . . AOE . | . . . . Terrain Rammed . | . . . . Walls Destroyed . | . . . . Machines Disabled . | . . . . Actions | -11 -10 -10 -9 --------- Run | Yrd Mat Sub Scr Total 2520 | 50 109 313 2048 Wait 12 | . 1 9 2 Move 2393 | 30 101 276 1986 Hop . | . . . . Pick Up 38 | 8 2 15 13 Fast Attach 9 | 1 . . 8 Attach 10 | 5 1 . 4 Detach . | . . . . Swap 11 | 2 1 2 6 Drop 29 | 2 1 6 20 Fire 18 | 2 2 5 9 Melee . | . . . . Ram . | . . . . Kick . | . . . . Crush . | . . . . Escape Stasis . | . . . . Rewire . | . . . . Trap . | . . . . Miscellaneous . | . . . . Route ------- -11/Scrapyard -10/Materials -10/Subcaves -9/Scraptown (discovered 2 exits: [*Fac x2]) History --------- Turn | Location | Event 19 | -11/Scrapyard | Discovered new exit (range 16) 50 | -11/Scrapyard | Entered Materials 51 | -10/Materials | Met a group of wandering Federalists 143 | -10/Materials | Discovered new exit (range 12) 163 | -10/Materials | Entered Subcaves 163 | -10/Subcaves | Accompanied by 3 allies 164 | -10/Subcaves | Continued accompanying wandering Federalists (5) 179 | -10/Subcaves | Learned location of Recycling (-9) 338 | -10/Subcaves | Build established: Mutant 371 | -10/Subcaves | Shifting Twisted Machinery released Sub. Monowheel 383 | -10/Subcaves | Shifting Twisted Machinery released Scrap Shield 398 | -10/Subcaves | Wandering Federalist uncovered a shortcut to Scraptown 484 | -10/Subcaves | Entered Scraptown 518 | -9/Scraptown | Heard Great Nut preacher, LISTEN AND RECITE! 879 | -9/Scraptown | Discovered new exit (range 9) 1044 | -9/Scraptown | Scanned Subdweller tech in exchange for log data 1047 | -9/Scraptown | Learned location of 1 exit from Research 1048 | -9/Scraptown | Learned location of 1 exit from Factory 1107 | -9/Scraptown | Visited Assassins FH 1162 | -9/Scraptown | Visited IN-MT5's Study 1198 | -9/Scraptown | Visited Cyclists 1243 | -9/Scraptown | Visited UFD Registry 1243 | -9/Scraptown | Registered with UFD as "Autospreader" 1255 | -9/Scraptown | Visited CPS Storage 1486 | -9/Scraptown | Visited Bundlers 1563 | -9/Scraptown | Visited Shadow of the Wyrm 1825 | -9/Scraptown | Entered Cyclist Reading Room 1903 | -9/Scraptown | Visited Cartography Club 1939 | -9/Scraptown | Found Surveybot 17 Chip 2004 | -9/Scraptown | Visited Junk Cannon Lab 2058 | -9/Scraptown | Visited Science Testing Area 2119 | -9/Scraptown | Found Scrap Suit 2173 | -9/Scraptown | Discovered new exit (range 3) 2220 | -9/Scraptown | Visited Modified Component R&D 2259 | -9/Scraptown | Visited Observation Area 2317 | -9/Scraptown | Visited DA-N13 Charitable Foundation 2324 | -9/Scraptown | Found DCF Scrap (29 items) 2491 | -9/Scraptown | Met Optimus 2491 | -9/Scraptown | Accepted into 0bPrime 2564 | -9/Scraptown | Civil war broke out across Scraptown 2669 | -9/Scraptown | Core integrity fell below 50% 2680 | -9/Scraptown | Core integrity fell below 20% 2704 | -9/Scraptown | Lost 5 parts (1p1n1u2w) 2718 | -9/Scraptown | Destroyed by DV-PDE(j) with Overtuned Pulse Rifle Last Messages --------------- 02668_ JY-NY3(j) destroyed. 02669_ Hvy. Riot Gun destroyed. 02672_ 5Q-PPW(E) destroyed. 02673_ Com. Wheel destroyed. 02675_ PN-65L(j) heat short circuits Lgt. Deuterium Engine. 02676_ Acquired Lgt. Deuterium Engine. 02677_ System corrupted: Matter fused (-6). 02677_ PN-65L(j): "Not fair, they have Elites!" 02679_ PN-65L(j) cannibalizes Ovr. Titanium Leg to repair Ovr. Titanium Leg. 02679_ 3D-DPC(x) destroyed. 02681_ NJ-2TR(x) destroyed. 02685_ Acquired 16 matter. 02691_ Bolt penetrates JA-BZH(j). 02699_ Acquired Imp. Deuterium Engine. 02705_ RS-F9P(E) heat spikes uncontrollably. 02705_ RS-F9P(E) destroyed. 02716_ Acquired Ovr. Treads. [Achievement: This Is Interesting...] Map ----- +----------------------------------------------------+ | # ##########???????##### ########### ########### # | | #???????#"""" """"""""""" """""""""" " | | #???????#" =%[ = | | #???????#" % != = | | #???????#" ![! = | | #???????#" % | | ## #???#####" ! | | ?# #???#"""" """""""""""""""""""""""" | | ?# #???#"""" """""""""""""""""""""""" | | ?# #???#"""" ""###### ############## | | ?# #???#"""" =! ""# ##??????? | | ?# #???#"""" ""# X"#??????? | | ?# ###?#""" ""# "" "" ##??????? | | ?# ""#"#"""" ""# "" "" X"#??????# | | ?# """"#"""" ""# " " ######### | | ?# ""####### "" "" !!!* | | ## ###?????# "" "" [!%== | | # ######### ! ""# " " #####"### | | %!= *%! ""# "" "" ""#??????# | | # =![ =[ ""# "" "" ##??????? | | # !*= %! ""# X"#??????? | | # ""# ##??????? | | ## [ ""###### ############## | | !%= !!= """"""""""""""""""""""" | | %[ * =%[ """"""""""""""""""" " " | | =![ !!%%!*! @ j =%! | | %!!! % == [%[ j =[ | | =*=%E= =%[%==* !*=!/![ | | !=#""""# !*! *!=!!=[ | | #????# =%!= [[!=%!=%* | | #????#"" "!"%[ "" %%""""""""" | | ######## ####????#####;#!;#;;#;##;##=#########"* | | #??# #?????????? ### *! ????? | | #??# #?????????# #?#""" ""???# | | #??# #?????????# """"" #?#""" """"??# | | #??# #?????????# "###" ;?#"!" ""???#"" | | #??# #?????????" ??#" ##?""" ""???# | | "#??# #????????## ????" #????" "????# " | | " ##??# #?????????" ???? #????"""""?????"" | | # #???# #?????????? ????? " #????"""""??????" | | ####???# #????????????????"?"????????????????"" | | ???????# #???????????????????????????????????? | | ???????# #????????????????????????????????????? | | ######## #?????????????????????????????????????? | | """""""" #?????????????????????????????????????? | | "" """"" #?????????????????????????????????????? | | " " "" #?????????????????????????????????????? | | #?????????????????????????????????????? | | "" "" " #?????????????????????????????????????? | | """""""" #?????????????????????????????????????? | +----------------------------------------------------+ Best States ------------- Heat Dissipation 25 Energy Generation 16 Energy Capacity 290 Matter Stores 300 Matter Capacity 300 Sight Range 16 Terrain Scan Density 10 Armor Coverage 150 Resistance: KI 20 Evasion (%) 57 Authchip Count 1 Item Schematics ----------------- None Robot Schematics ------------------ None Fabricated ------------ Nothing Repaired ---------- Nothing Alien Tech Used ----------------- None Achievements -------------- This Is Interesting... Challenges ------------ None Game ------ Seed DisassembledAmuletShredder Manual? 0 Play Time 00:49:37 Cumulative 29.5 hours Start 2025.05.17 @ 22:32:10 End 2025.05.18 @ 02:19:36 Sessions 1 Manual Loads 0 Difficulty Rogue Special Mode None Game No. 25 Rogue 19 Adventurer 0 Explorer 6 Win Type - Total 1 Types 1/0/0/0/0/0/0/0/0/0 Lore% 25 Gallery% 41 Achievement% 41 Wizard Run 0 Options --------- Layout 1 ASCII 0 Keyboard 0 Movement Mouse Keybinds 0 Fullscreen 1 Font 36/Smallcaps Map View 50x35 Zoom Use 0% Tactical HUD 1 Map Filters NONE Filters NONE Steam 1 RUN: 07e02341-cd51-497d-bd42-d1fce37eef14